bitfinex/quotes_ETHUSD_20241120
["timestamp","ask_amount","ask_price","bid_price","bid_amount"]
[1732110958084,3.2203,3105.3,3105.2,1.6102]
[1732110959349,3.22019,3105.4,3105.2,1.6102]
[1732110960211,6.44047,3105.4,3105.2,1.6102]
[1732110960523,3.2203,3105.3,3105.2,1.6102]
[1732110961193,6.44045,3105.4,3105.2,1.6102]
[1732110961352,3.22019,3105.4,3105.2,1.6102]
[1732110961531,6.4401,3105.6,3105.2,1.6102]
[1732110961856,3.22004,3105.6,3105.3,0.7797]
[1732110961999,3.22004,3105.6,3105.3,1.01869]
[1732110962203,3.21984,3105.8,3105.3,1.01869]
[1732110962556,3.21984,3105.8,3105.4,1.6101]
[1732110962873,3.21981,3105.8,3105.4,1.6101]
[1732110963005,3.21981,3105.8,3105.4,1.937384]
[1732110963511,3.21968,3105.9,3105.4,2.581404]
[1732110963906,3.21948,3106.1,3105.6,1.41098]
[1732110964105,6.43869,3106.3,3105.7,0.64396]
[1732110964340,3.21945,3106.2,3105.8,0.205494]
[1732110964547,3.21945,3106.2,3105.7,1.6099]
[1732110965074,3.21954,3106.1,3105.7,1.6099]
[1732110965436,3.21921,3106.4,3105.7,2.25386]
[1732110965696,4.03758882,3106.8,3105.7,2.25386]
[1732110965697,3.21908,3106.5,3105.8,3.7925]
[1732110965985,3.21924,3106.4,3105.9,0.64393]
[1732110966134,3.21944,3106.2,3105.8,0.7925]
[1732110966343,3.21954,3106.1,3106.0,1.6098]
[1732110967182,3.21942,3106.2,3106.0,1.6098]
[1732110968368,3.21902,3106.6,3106.0,1.85003]
[1732110968534,3.21918,3106.4,3106.0,1.85003]
[1732110969565,6.43806,3106.6,3106.0,2.49394]
[1732110969882,3.21902,3106.6,3106.0,1.85003]
[1732110970048,3.21905,3106.5,3106.0,1.85003]
[1732110970248,3.21905,3106.5,3106.0,2.49393]
[1732110970453,3.21885,3106.7,3106.2,0.7775]
[1732110970639,3.33896657,3106.8,3106.2,1.42135]
[1732110970838,3.33896657,3106.8,3106.3,0.8141236]
[1732110971238,3.21839,3107.2,3106.5,0.7945]
[1732110971398,3.21839,3107.2,3106.6,0.64377]
[1732110971399,3.21843,3107.1,3106.6,0.64377]
[1732110971543,3.21839,3107.2,3106.6,0.64377]
[1732110971748,3.21839,3107.2,3106.6,5.25327]
[1732110972098,3.21793,3107.6,3107.0,0.6437]
[1732110972245,3.2181,3107.5,3106.9,0.7945]
[1732110972468,3.2181,3107.5,3107.0,0.208196]
[1732110972469,6.43622,3107.5,3107.0,0.208196]
[1732110972772,3.21819,3107.4,3107.0,0.208196]
[1732110972961,3.21819,3107.4,3107.1,1.6092]
[1732110973157,3.2181,3107.5,3107.1,1.6092]
[1732110973544,3.21816,3107.4,3107.1,1.6092]
[1732110973895,3.2181,3107.5,3107.1,1.6092]
[1732110974096,3.21785,3107.7,3107.1,1.9347616]
[1732110974250,3.21785,3107.7,3107.1,2.5784316]
[1732110974444,3.21774,3107.8,3107.2,1.46296]
[1732110974664,3.21783,3107.7,3107.3,1.6091]
[1732110975949,3.21772,3107.8,3107.3,1.6091]
[1732110976155,3.25020339,3107.7,3107.3,1.6091]
[1732110976911,6.46810339,3107.7,3107.3,1.6091]
[1732110977202,3.21812,3107.4,3107.3,1.6091]
[1732110977487,3.58872,3107.4,3107.3,1.6091]
[1732110977704,3.62104339,3107.4,3107.3,1.6091]
[1732110978048,3.2181,3107.5,3107.3,1.6091]
[1732110978451,3.21812,3107.4,3107.3,1.6091]
[1732110978964,6.43594,3107.6,3107.3,1.6091]
[1732110979151,3.21776,3107.8,3107.3,1.6091]
[1732110980073,3.21766,3107.9,3107.4,0.64362]
[1732110980273,3.21766,3107.9,3107.3,1.6091]
[1732110980274,3.21756,3108.0,3107.3,1.6091]
[1732110980493,3.21763,3107.9,3107.4,0.64361]
[1732110980804,3.21763,3107.9,3107.5,1.609]
[1732110981282,3.21789,3107.7,3107.5,1.609]
[1732110981482,0.03232339,3107.6,3107.5,1.609]
[1732110981670,3.21791,3107.6,3107.5,1.609]
[1732110982423,3.21778,3107.8,3107.5,1.609]
[1732110982567,3.21782,3107.7,3107.5,1.609]
[1732110982767,1.06409928,3108.1,3107.5,1.609]
[1732110982962,3.21767,3107.9,3107.5,1.609]
[1732110983204,3.21782,3107.7,3107.5,1.609]
[1732110983414,0.03232339,3107.8,3107.5,1.609]
[1732110983612,3.25011339,3107.8,3107.5,1.609]
[1732110983904,3.21789,3107.7,3107.5,1.609]
[1732110984107,3.21791,3107.6,3107.5,1.609]
[1732110985069,3.21789,3107.7,3107.5,1.609]
[1732110985413,3.21791,3107.6,3107.5,1.609]
[1732110986586,3.21789,3107.7,3107.5,1.609]
[1732110987420,3.21791,3107.6,3107.5,1.609]
[1732110989372,3.21789,3107.7,3107.5,1.609]
[1732110989572,3.21774,3107.8,3107.5,1.609]
[1732110989812,3.21783,3107.7,3107.5,1.609]
[1732110990598,3.21791,3107.6,3107.5,1.609]
[1732110992181,4.26440539,3107.6,3107.5,1.609]
[1732110992387,4.232082,3107.6,3107.5,1.609]
[1732110993326,3.58851,3107.6,3107.5,1.609]
[1732110993488,3.21791,3107.6,3107.5,1.609]
[1732110993687,3.58851,3107.6,3107.5,1.609]
[1732110994811,3.62083339,3107.6,3107.5,1.609]
[1732110995521,3.58851,3107.6,3107.5,1.609]
[1732110995719,4.28138991,3107.6,3107.5,1.609]
[1732110996612,3.21812,3107.4,3106.6,0.7864]
[1732110996929,3.21866,3106.9,3106.6,0.7864]
[1732110997374,3.21879,3106.8,3106.6,0.7864]
[1732110998126,3.21912,3106.5,3106.2,0.8097]
[1732110998724,6.43783,3106.7,3106.2,1.45357]
[1732110998921,3.21902,3106.6,3106.2,0.8097]
[1732110999927,3.21888,3106.7,3106.2,1.45356]
[1732111000232,3.21888,3106.7,3106.2,0.8097]
[1732111000400,3.21896,3106.6,3106.2,0.8097]
[1732111001009,3.21905,3106.5,3106.2,0.8097]
[1732111001712,3.21881,3106.8,3106.2,0.8097]
[1732111001888,3.21895,3106.6,3106.2,0.8097]
[1732111002398,5.31335,3107.5,3106.0,0.64389]
[1732111002399,3.2186,3107.0,3106.4,0.64382]
[1732111002621,3.2186,3107.0,3106.0,3.03218897]
[1732111002827,3.2186,3107.0,3106.5,1.41481]
[1732111003134,6.43721,3107.0,3106.5,0.771]
[1732111003309,3.2186,3107.0,3106.5,0.771]
[1732111003506,3.21838,3107.2,3106.5,1.41479]
[1732111003748,3.21851,3107.1,3106.6,0.8152]
[1732111003909,3.21859,3107.0,3106.6,0.8152]
[1732111004341,3.21871,3106.9,3106.6,0.8152]
[1732111004958,3.21844,3107.1,3106.6,1.78087]
[1732111005161,3.2182,3107.4,3106.8,1.7562]
[1732111005309,2.2073698,3107.5,3106.8,1.7562]
[1732111005310,2.2073698,3107.5,3106.8,0.7906]
[1732111005512,3.21821,3107.4,3106.8,2.0558701]
[1732111005827,3.21821,3107.4,3106.9,0.96558]
[1732111006218,5.30333,3107.5,3107.2,0.7566]
[1732111006468,2.0853,3107.5,3107.2,0.7566]
[1732111006669,5.30332,3107.5,3107.2,0.7566]
[1732111007497,3.21815,3107.4,3107.2,0.7566]
[1732111007653,5.30332,3107.5,3107.2,0.7566]
[1732111008628,3.21812,3107.4,3107.2,0.7566]
[1732111009199,3.21853,3107.0,3106.9,0.8066]
[1732111009581,3.21833,3107.2,3106.9,0.8066]
[1732111009892,3.21846,3107.1,3106.9,0.8066]
[1732111010119,3.21833,3107.2,3107.0,1.6092]
[1732111010306,3.21843,3107.1,3107.0,1.6092]
[1732111010653,3.862106,3107.1,3107.0,1.6092]
[1732111013563,3.89442939,3107.1,3107.0,1.6092]
[1732111014000,3.862106,3107.1,3107.0,1.6092]
[1732111014323,4.232706,3107.1,3107.0,1.6092]
[1732111016194,0.643676,3107.1,3107.0,1.6092]
[1732111016450,3.21833,3107.2,3107.0,1.6092]
[1732111016611,3.21843,3107.1,3107.0,1.6092]
[1732111018847,4.119142,3107.4,3107.0,1.6092]
[1732111019031,3.21823,3107.3,3107.0,1.6092]
[1732111019345,3.21836,3107.2,3107.0,1.6092]
[1732111019804,6.43677,3107.2,3107.0,1.6092]
[1732111020248,3.21843,3107.1,3107.0,1.6092]
[1732111020716,3.21813,3107.4,3107.0,1.6092]
[1732111020921,2.0853,3107.5,3107.0,2.57473]
[1732111021247,5.30338,3107.5,3107.0,2.57473]
[1732111021489,2.0853,3107.5,3107.1,0.7841]
[1732111021691,2.0853,3107.5,3107.1,1.74962]
[1732111021897,2.0853,3107.5,3107.2,0.96548]
[1732111022047,2.0853,3107.5,3107.2,2.57468]
[1732111022248,2.0853,3107.5,3107.2,1.6092]
[1732111022789,2.0853,3107.5,3107.3,0.96546]
[1732111023198,2.0853,3107.5,3107.4,1.6091]
[1732111024401,5.30332,3107.5,3107.4,1.6091]
[1732111024554,5.833652,3107.5,3107.4,1.6091]
[1732111024750,2.0853,3107.5,3107.4,1.6091]
[1732111028009,2.0853,3107.5,3107.4,1.606909]
[1732111028960,5.30332,3107.5,3107.4,1.606909]
[1732111029164,2.0853,3107.5,3107.4,1.606909]
[1732111030296,2.0853,3107.5,3107.4,2.572339]
[1732111030799,2.0853,3107.5,3107.4,1.606909]
[1732111032120,6.204246,3107.5,3107.4,1.606909]
[1732111033382,6.3241785,3107.5,3107.4,1.606909]
[1732111033587,6.35650189,3107.5,3107.4,1.606909]
[1732111034121,6.204246,3107.5,3107.4,1.606909]
[1732111035000,6.23656939,3107.5,3107.4,1.606909]
[1732111035515,6.204246,3107.5,3107.4,1.606909]
[1732111036033,10.23898608,3107.5,3107.4,1.606909]
[1732111036328,10.24128136,3107.5,3107.4,1.606909]
[1732111036628,6.204246,3107.5,3107.4,1.606909]
[1732111037013,6.32289946,3107.5,3107.4,1.606909]
[1732111038223,10.24168311,3107.5,3107.4,1.606909]
[1732111038574,9.34075711,3107.5,3107.4,1.606909]
[1732111038774,5.30332,3107.5,3107.4,1.606909]
[1732111039282,2.0853,3107.5,3107.4,1.606909]
[1732111039596,2.0853,3107.5,3107.4,3.335239]
[1732111039806,2.0853,3107.5,3107.4,2.369809]
[1732111040301,2.0853,3107.5,3107.4,3.6687639]
[1732111042126,2.0853,3107.5,3107.4,2.7033339]
[1732111042333,2.0853,3107.5,3107.4,2.369809]
[1732111043078,2.0853,3107.5,3107.4,3.335239]
[1732111045098,2.0853,3107.5,3107.4,6.885239]
[1732111046091,2.0853,3107.5,3107.4,6.335239]
[1732111046300,2.0853,3107.5,3107.4,2.369809]
[1732111046895,2.0853,3107.5,3107.4,3.657049]
[1732111048198,2.0853,3107.5,3107.4,2.369809]
[1732111048898,2.0853,3107.5,3107.4,1.606909]
[1732111050399,5.67392,3107.5,3107.4,1.606909]
[1732111050597,6.59543239,3107.5,3107.4,1.606909]
[1732111050840,6.563109,3107.5,3107.4,1.606909]
[1732111051333,9.92569018,3107.5,3107.4,1.606909]
[1732111051954,6.563109,3107.5,3107.4,1.606909]
[1732111052159,9.03650118,3107.5,3107.4,1.606909]
[1732111052359,5.30332,3107.5,3107.4,1.606909]
[1732111052687,2.0853,3107.5,3107.4,2.376609]
[1732111053176,2.0853,3107.5,3107.4,3.663849]
[1732111053329,2.0853,3107.5,3107.4,2.376609]
[1732111054038,2.0853,3107.5,3107.4,3.663849]
[1732111054236,2.0853,3107.5,3107.4,4.1589599]
[1732111055181,2.0853,3107.5,3107.4,2.8717199]
[1732111055797,2.0853,3107.5,3107.4,4.1589599]
[1732111056097,2.0853,3107.5,3107.4,2.376609]
[1732111056266,2.0853,3107.5,3107.4,3.663849]
[1732111059292,2.0853,3107.5,3107.4,2.376609]
[1732111060901,2.0853,3107.5,3107.4,1.606909]
[1732111064219,5.30332,3107.5,3107.4,1.606909]
[1732111065015,2.0853,3107.5,3107.4,1.606909]
[1732111067234,2.0353,3107.5,3107.4,1.606909]
[1732111072559,5.25332,3107.5,3107.4,1.606909]
[1732111072696,8.61865917,3107.5,3107.4,1.606909]
[1732111073041,9.83957824,3107.5,3107.4,1.606909]
[1732111073334,6.47404692,3107.5,3107.4,1.606909]
[1732111073494,8.61875998,3107.5,3107.4,1.606909]
[1732111073691,5.25332,3107.5,3107.4,1.606909]
[1732111074094,5.40073998,3107.5,3107.4,1.606909]
[1732111074290,2.0353,3107.5,3107.4,2.434109]
[1732111074493,2.0353,3107.5,3107.4,1.606909]
[1732111074494,5.62392,3107.5,3107.4,1.606909]
[1732111075107,8.98935998,3107.5,3107.4,1.606909]
[1732111076053,5.62392,3107.5,3107.4,1.606909]
[1732111076337,2.0353,3107.5,3107.4,1.606909]
[1732111077131,2.0353,3107.5,3107.4,1.8963319]
[1732111077961,2.0353,3107.5,3107.4,2.7181319]
[1732111079351,2.0353,3107.5,3107.4,4.0053719]
[1732111080271,2.0353,3107.5,3107.4,4.5553719]
[1732111080957,1.84449062,3107.5,3107.4,7.5553719]
[1732111081254,3.36480423,3108.5,3108.2,0.7625]
[1732111081459,3.36480423,3108.7,3108.2,2.04941]
[1732111081642,3.24926339,3108.6,3108.3,1.6108]
[1732111081814,0.03232339,3108.6,3108.3,1.6108]
[1732111082258,3.39712762,3108.6,3108.3,1.6108]
[1732111082553,2.69131222,3108.5,3108.3,1.6108]
[1732111082754,5.90839222,3108.4,3108.3,1.6108]
[1732111083251,6.58188423,3108.4,3108.3,1.6108]
[1732111083452,5.9079253,3108.4,3108.3,1.6108]
[1732111083653,3.21708,3108.4,3108.3,1.6108]
[1732111084214,6.58188423,3108.4,3108.3,1.6108]
[1732111084415,7.61067265,3108.4,3108.3,1.6108]
[1732111084622,4.24586842,3108.4,3108.3,1.6108]
[1732111084862,7.60976934,3108.4,3108.3,1.6108]
[1732111086518,6.58098092,3108.4,3108.3,1.6108]
[1732111086828,3.36390092,3108.4,3108.3,1.6108]
[1732111087154,3.21708,3108.4,3108.3,1.6108]
[1732111087453,6.58098092,3108.4,3108.3,1.6108]
[1732111087658,6.58088092,3108.5,3108.3,1.6108]
[1732111087819,3.21708,3108.4,3108.3,1.6108]
[1732111088161,5.90734786,3108.4,3108.3,1.6108]
[1732111088815,8.2374638,3108.4,3108.3,1.6108]
[1732111089012,6.95158092,3108.4,3108.3,1.6108]
[1732111089219,6.58098092,3108.4,3108.3,1.6108]
[1732111089457,3.21708,3108.4,3108.3,1.6108]
[1732111089665,2.68983246,3108.4,3108.3,1.6108]
[1732111090358,5.90682246,3108.5,3108.3,1.6108]
[1732111090558,2.68983246,3108.5,3108.3,2.4144]
[1732111090856,2.68983246,3108.6,3108.3,2.4144]
[1732111091565,0.03232339,3108.5,3108.3,2.4144]
[1732111092359,2.68983246,3108.6,3108.3,2.4144]
[1732111093881,5.90673246,3108.6,3108.3,2.4144]
[1732111094376,2.68983246,3108.6,3108.3,2.4144]
[1732111094752,5.90671246,3108.6,3108.3,2.4144]
[1732111095446,0.03232339,3108.5,3108.3,2.4144]
[1732111096369,0.03232339,3108.5,3108.3,1.6108]
[1732111096634,3.21708,3108.4,3108.3,1.6108]
[1732111096785,3.58768,3108.4,3108.3,1.6108]
[1732111098292,3.62000339,3108.4,3108.3,1.6108]
[1732111100284,0.40292339,3108.4,3108.3,1.6108]
[1732111100491,3.62000339,3108.4,3108.3,1.6108]
[1732111101375,3.58768,3108.4,3108.3,1.6108]
[1732111103358,5.90681246,3108.5,3108.3,2.4151]
[1732111103359,2.68983246,3108.5,3108.3,2.4151]
[1732111103560,3.21689,3108.6,3108.3,2.4151]
[1732111103984,5.93904585,3108.6,3108.3,2.4151]
[1732111104188,3.21701,3108.5,3108.3,2.4151]
[1732111105077,2.72215585,3108.6,3108.3,2.4151]
[1732111105601,0.03232339,3108.6,3108.3,2.4151]
[1732111105906,3.21688,3108.6,3108.3,2.4151]
[1732111106660,2.68983246,3108.6,3108.3,2.4151]
[1732111107101,2.68983246,3108.7,3108.3,3.70196]
[1732111107256,5.90661246,3108.7,3108.3,2.4151]
[1732111107461,3.21688,3108.6,3108.3,2.4151]
[1732111107702,2.68983246,3108.7,3108.3,2.4151]
[1732111108311,5.90666246,3108.7,3108.3,2.4151]
[1732111108510,9.12350246,3108.7,3108.3,2.4151]
[1732111108810,5.90666246,3108.7,3108.3,2.4151]
[1732111110374,2.68983246,3108.7,3108.4,1.28683]
[1732111110779,2.68983246,3108.7,3108.5,1.6107]
[1732111111406,2.68983246,3108.8,3108.5,1.6107]
[1732111111588,5.90632246,3109.0,3108.5,2.89747]
[1732111111790,5.90632246,3109.0,3108.5,4.18423]
[1732111112015,2.68983246,3109.0,3108.6,1.28673]
[1732111112423,2.68983246,3109.0,3108.6,1.28672]
[1732111112604,2.72215585,3109.0,3108.7,1.6106]
[1732111112804,2.68711437,3108.8,3108.7,1.6106]
[1732111113310,2.68711437,3109.1,3108.7,2.3804]
[1732111113584,2.68711437,3109.2,3108.9,1.28662]
[1732111114004,2.68711437,3109.3,3109.0,1.6104]
[1732111114316,2.68711437,3109.2,3109.0,1.6104]
[1732111114518,2.68711437,3109.3,3109.0,1.6104]
[1732111115424,5.90318437,3109.4,3109.0,1.6104]
[1732111116303,5.90318437,3109.4,3109.0,1.949637]
[1732111117535,2.68711437,3109.4,3109.0,1.949637]
[1732111117762,2.68711437,3109.5,3109.1,2.10492]
[1732111117892,2.68711437,3109.5,3109.2,0.4054557]
[1732111118088,2.68711437,3109.5,3109.2,2.0157557]
[1732111118304,2.68711437,3109.6,3109.3,1.28644]
[1732111118488,2.68711437,3109.6,3109.2,2.0157557]
[1732111118688,2.68711437,3109.6,3109.3,1.28645]
[1732111119024,2.68711437,3109.7,3109.4,1.28641]
[1732111119231,2.68711437,3109.9,3109.6,0.55]
[1732111119539,0.0920278,3110.0,3109.7,2.09505]
[1732111119718,0.0920278,3110.0,3109.9,1.28621]
[1732111119921,0.0920278,3110.0,3109.9,1.83621]
[1732111120239,0.0920278,3110.0,3109.9,3.44621]
[1732111121142,0.0920278,3110.0,3109.9,2.16]
[1732111121343,0.0920278,3110.0,3109.9,3.8981655]
[1732111122508,0.0920278,3110.0,3109.9,4.6537655]
[1732111123140,0.0920278,3110.0,3109.9,7.6537655]
[1732111124908,0.0920278,3110.0,3109.9,7.6637655]
[1732111126319,0.0920278,3110.0,3109.9,7.6537655]
[1732111127512,0.0920278,3110.0,3109.9,7.6637655]
[1732111128119,0.0920278,3110.0,3109.9,7.6537655]
[1732111130421,0.0920278,3110.0,3109.9,4.6537655]
[1732111131061,0.0920278,3110.0,3109.9,2.8175555]
[1732111131364,0.0920278,3110.0,3109.9,2.3656]
[1732111132139,0.0920278,3110.0,3109.9,3.33026]
[1732111132534,0.0920278,3110.0,3109.9,2.3656]
[1732111132974,0.0920278,3110.0,3109.9,1.61]
[1732111136554,3.3074578,3110.0,3109.9,1.61]
[1732111136928,3.6780578,3110.0,3109.9,1.61]
[1732111137383,3.71038119,3110.0,3109.9,1.61]
[1732111137953,3.6780578,3110.0,3109.9,1.61]
[1732111138337,3.71038119,3110.0,3109.9,1.61]
[1732111141631,3.6780578,3110.0,3109.9,1.61]
[1732111141849,0.0920278,3110.0,3109.9,1.771]
[1732111142192,0.0920278,3110.0,3109.9,2.5957]
[1732111142993,0.0920278,3110.0,3109.9,3.56036]
[1732111143791,0.0920278,3110.0,3109.9,7.11036]
[1732111150218,0.0920278,3110.0,3109.9,6.1457]
[1732111150418,0.0920278,3110.0,3109.9,5.5957]
[1732111150567,0.0920278,3110.0,3109.9,1.771]
[1732111150899,0.0920278,3110.0,3109.9,1.61]
[1732111152607,0.0920278,3110.0,3109.9,6.12466]
[1732111153902,0.0920278,3110.0,3109.9,6.95116]
[1732111154087,0.0920278,3110.0,3109.9,6.96116]
[1732111160216,0.0920278,3110.0,3109.9,7.08315762]
[1732111160551,0.0920278,3110.0,3109.9,7.88894238]
[1732111161658,0.0920278,3110.0,3109.9,7.87894238]
[1732111163562,0.0920278,3110.0,3109.9,4.75694476]
[1732111164750,0.0920278,3110.0,3109.9,7.75694476]
[1732111167736,2.01577659,3110.8,3110.7,0.96441]
[1732111168079,10.96,3111.0,3110.8,3.96436]
[1732111168247,10.96,3111.0,3110.9,1.6095]
[1732111168452,10.96,3111.0,3110.9,4.6095]
[1732111168987,10.96,3111.0,3110.9,5.57385]
[1732111169685,10.96,3111.0,3110.9,4.6095]
[1732111169852,10.96,3111.0,3110.9,1.6095]
[1732111170061,10.96,3111.0,3110.9,6.227678]
[1732111170280,10.96,3111.0,3110.9,5.57385]
[1732111170886,10.96,3111.0,3110.9,6.37995]
[1732111171957,10.96,3111.0,3110.9,6.92995]
[1732111172556,9.56800065,3111.0,3110.9,6.92995]
[1732111172790,9.56800065,3111.0,3110.9,7.719383]
[1732111173258,9.56800065,3111.0,3110.9,6.363283]
[1732111173663,9.56800065,3111.0,3110.9,6.913283]
[1732111177802,9.56800065,3111.0,3110.9,7.735283]
[1732111179774,9.56800065,3111.0,3110.9,6.913283]
[1732111180164,9.56800065,3111.0,3110.9,6.12385]
[1732111182113,9.56800065,3111.0,3110.9,5.57385]
[1732111182406,9.56800065,3111.0,3110.9,1.6095]
[1732111183695,9.56800065,3111.0,3110.9,4.6095]
[1732111184315,9.56800065,3111.0,3110.9,1.6095]
[1732111184875,9.56800065,3111.0,3110.9,2.57385]
[1732111185069,9.56800065,3111.0,3110.9,5.57385]
[1732111185588,9.56800065,3111.0,3110.9,6.777671]
[1732111186281,9.56800065,3111.0,3110.9,7.575071]
[1732111190215,9.56800065,3111.0,3110.9,6.777671]
[1732111192852,9.56800065,3111.0,3110.9,6.12385]
[1732111193151,9.56800065,3111.0,3110.9,1.6095]
[1732111194422,9.56800065,3111.0,3110.9,4.6095]
[1732111194643,9.56800065,3111.0,3110.9,5.57385]
[1732111195056,9.56800065,3111.0,3110.9,6.12385]
[1732111195260,9.56800065,3111.0,3110.9,6.832673]
[1732111199480,9.56800065,3111.0,3110.9,7.663173]
[1732111200804,9.28768813,3111.0,3110.9,7.663173]
[1732111201096,3.71526417,3111.0,3110.9,7.673173]
[1732111201439,3.0085826,3111.0,3110.9,7.673173]
[1732111202969,3.0085826,3111.0,3110.9,7.683173]
[1732111203129,3.0085826,3111.0,3110.9,7.673173]
[1732111205439,3.0085826,3111.0,3110.9,7.683173]
[1732111207684,3.0085826,3111.0,3110.9,7.673173]
[1732111207856,3.0085826,3111.0,3110.9,4.113173]
[1732111208058,3.66727,3110.8,3110.6,1.09432795]
[1732111208569,3.66727,3110.8,3110.7,0.96441]
[1732111209151,3.66727,3110.8,3110.7,2.57171]
[1732111209354,3.66727,3110.8,3110.7,5.57171]
[1732111209557,3.66727,3110.8,3110.7,6.226324]
[1732111210103,1.67428082,3111.0,3110.9,1.52435]
[1732111210487,1.67428082,3111.0,3110.9,6.13165]
[1732111210657,1.67428082,3111.0,3110.9,6.9077174]
[1732111211068,1.67428082,3111.0,3110.9,7.7327174]
[1732111212974,1.54029787,3111.0,3110.9,7.7327174]
[1732111213306,0.8231,3111.8,3111.7,0.9641]
[1732111213723,0.8231,3111.8,3111.7,2.5709]
[1732111213873,0.8231,3111.8,3110.9,1.3360674]
[1732111213874,0.8231,3111.8,3111.6,3.0]
[1732111214074,0.8231,3111.8,3111.3,0.47537648]
[1732111214319,0.8231,3111.8,3110.7,0.96441]
[1732111214320,0.8231,3111.8,3110.5,0.02]
[1732111214529,3.21426293,3112.0,3110.5,0.02]
[1732111214530,0.7648,3111.7,3111.4,1.28559]
[1732111214702,0.7648,3111.7,3111.5,1.28555]
[1732111214906,0.7648,3111.7,3111.5,2.89245]
[1732111215106,0.7648,3111.7,3111.5,1.6069]
[1732111215286,0.7648,3111.7,3111.6,1.28551]
[1732111215494,0.7648,3111.7,3111.6,0.55]
[1732111215820,0.7648,3111.7,3111.6,2.1569]
[1732111216211,0.7648,3111.7,3111.6,3.44241]
[1732111216395,0.79366293,3112.0,3111.8,1.28541]
[1732111216579,0.7936609,3112.0,3111.9,2.89208]
[1732111217010,0.7936609,3112.0,3111.9,1.6067]
[1732111218013,0.7936609,3112.0,3111.9,2.89208]
[1732111218183,0.7936609,3112.0,3111.9,1.6067]
[1732111218603,1.19435899,3112.0,3111.9,1.6067]
[1732111218823,0.7936609,3112.0,3111.9,1.6067]
[1732111219194,4.0070209,3112.0,3111.9,1.6067]
[1732111222648,0.7936609,3112.0,3111.9,1.6067]
[1732111224295,0.0008609,3112.0,3111.9,2.89208]
[1732111227395,0.0008609,3112.0,3111.9,3.93850321]
[1732111227741,0.0008609,3112.0,3111.9,3.9706353]
[1732111228326,0.0008609,3112.0,3111.9,7.7641353]
[1732111228540,0.0008609,3112.0,3111.9,7.73200321]
[1732111230753,0.0008609,3112.0,3111.9,6.93850321]
[1732111230963,0.0008609,3112.0,3111.9,5.89208]
[1732111231615,0.0008609,3112.0,3111.9,2.89208]
[1732111232211,0.0008609,3112.0,3111.9,3.44208]
[1732111232414,0.0008609,3112.0,3111.9,2.1567]
[1732111232913,0.0008609,3112.0,3111.9,3.44208]
[1732111233644,0.0008609,3112.0,3111.9,2.1567]
[1732111234015,0.0008609,3112.0,3111.9,3.44208]
[1732111234214,0.0008609,3112.0,3111.9,2.1567]
[1732111234432,0.0008609,3112.0,3111.9,1.6067]
[1732111234626,0.0008609,3112.0,3111.9,3.44208]
[1732111234864,0.0008609,3112.0,3111.9,3.914828]
[1732111235234,0.0008609,3112.0,3111.9,7.751628]
[1732111235458,3.3553389,3113.1,3112.7,1.28502]
[1732111235459,0.1430989,3113.1,3112.7,1.28502]
[1732111235620,0.1430989,3113.1,3112.8,1.6063]
[1732111235821,0.1430989,3113.1,3112.8,2.8913]
[1732111236031,0.1430989,3113.1,3112.9,1.28496]
[1732111236282,0.1430989,3113.1,3113.0,1.6062]
[1732111236977,0.1430989,3113.1,3113.0,3.180246]
[1732111237202,0.1430989,3113.1,3113.0,3.730246]
[1732111237834,0.1430989,3113.1,3113.0,6.730246]
[1732111238065,0.09985865,3113.2,3113.1,4.83489]
[1732111238265,0.8093,3114.4,3113.6,0.55]
[1732111238439,0.8093,3114.4,3113.9,0.55]
[1732111238643,0.84162339,3114.4,3113.9,0.55]
[1732111238842,0.84162339,3114.4,3114.0,1.6057]
[1732111239145,1.24685973,3114.4,3114.0,1.6057]
[1732111239361,0.8093,3114.4,3114.0,2.89019]
[1732111239577,3.01,3115.2,3114.3,1.28439]
[1732111239779,0.8122,3114.8,3114.4,2.88972]
[1732111240078,0.03232339,3114.7,3114.4,1.6054]
[1732111240297,3.21078,3114.5,3114.4,1.6054]
[1732111240433,4.37961373,3114.5,3114.4,1.6054]
[1732111240633,4.34729034,3114.5,3114.4,1.6054]
[1732111243182,1.13651034,3114.5,3114.4,1.6054]
[1732111243354,0.8122,3114.5,3114.4,1.6054]
[1732111244552,0.7943,3114.8,3114.4,1.6054]
[1732111244996,3.97318,3115.1,3114.4,2.88975]
[1732111245165,3.21027,3115.0,3114.4,4.6054]
[1732111245373,0.763,3115.1,3114.4,4.6054]
[1732111245750,3.21028,3115.0,3114.4,1.6054]
[1732111246060,3.21028,3115.0,3114.4,5.88974]
[1732111246405,0.763,3115.1,3114.4,4.6054]
[1732111246701,0.763,3115.1,3114.6,1.28424]
[1732111246999,0.7502,3115.5,3114.7,1.63733242]
[1732111247358,3.95995,3115.5,3114.8,1.28418]
[1732111247562,0.7502,3115.5,3114.9,2.88933]
[1732111247732,3.95998,3115.5,3114.9,1.6052]
[1732111247940,0.7502,3115.5,3114.9,2.88935]
[1732111248329,3.96002,3115.5,3114.9,1.6052]
[1732111248529,3.24223339,3115.4,3114.9,1.6052]
[1732111249264,3.95996,3115.5,3114.9,1.6052]
[1732111249971,3.20989,3115.4,3114.9,1.6052]
[1732111250319,0.7502,3115.5,3114.9,1.6052]
[1732111250855,0.7502,3115.5,3114.9,2.88934]
[1732111251453,0.7502,3115.5,3114.9,1.6052]
[1732111251657,3.21015,3115.2,3114.9,1.6052]
[1732111251978,3.20994,3115.4,3114.9,1.6052]
[1732111252123,3.20996,3115.3,3114.9,1.6052]
[1732111252622,3.20986,3115.4,3114.9,1.6052]
[1732111252865,3.20997,3115.3,3114.9,1.6052]
[1732111253379,3.95997,3115.5,3114.9,1.6052]
[1732111253661,3.96003,3115.5,3114.9,1.6052]
[1732111253862,3.20988,3115.4,3114.9,1.6052]